fUSD/lending_fUSD_20250515
["ID","MTS","AMOUNT","RATE_DAILY","PERIOD"]
[361166583,1747317045876,-14535.3898278,0.00013,2]
[361166584,1747317045888,-5198.877,0.00013,2]
[361166585,1747317045998,-1389.06852062,0.00013,2]
[361166586,1747317046226,-1070.17017956,0.00013,2]
[361166587,1747317046238,-12000.0,0.00013,2]
[361166588,1747317046250,-1218.5,0.00013,2]
[361166589,1747317046263,-609.69999346,0.00013,2]
[361166592,1747317100359,-178.84555361,0.00010645,2]
[361166593,1747317107590,-244.65948578,0.00010645,2]
[361166594,1747317111264,-55.96496061,0.00010645,2]
[361166595,1747317150924,150.0,0.00012436,7]
[361166596,1747317206878,500.0,0.00025286,120]
[361166597,1747317210682,500.0,0.00027286,120]
[361166621,1747317640054,318.76593,0.00013,5]
[361166624,1747317801397,500.0,0.00026409,120]
[361166631,1747318037834,400.0,0.00023287,30]
[361166635,1747318110165,-223.80029689,0.00010362,2]
[361166636,1747318114370,-165.82,0.00010362,2]
[361166637,1747318114478,573.0310662,0.00025,30]
[361166638,1747318116374,-65.86970311,0.00010362,2]
[361166650,1747318232016,-458.11714593,0.00012247,2]
[361166651,1747318232027,-573.88796833,0.00012247,2]
[361166652,1747318232036,-173.0,0.00012361,2]
[361166653,1747318232046,-1200.0,0.00012361,2]
[361166654,1747318232056,-300.0,0.00012361,2]
[361166655,1747318232066,-11739.53,0.00012362,2]
[361166656,1747318232075,-1000.0,0.00012597,2]
[361166657,1747318232084,-455.49,0.00012626,2]
[361166658,1747318232093,-498.0,0.00012658,2]
[361166659,1747318232103,-1367.749,0.0001274,2]
[361166660,1747318232112,-207.4,0.00012862,2]
[361166661,1747318232122,-1000.0,0.00012896,2]
[361166662,1747318232135,-982.85033065,0.000129,2]
[361166663,1747318232144,-500.0,0.00012973,2]
[361166664,1747318232156,-8873.39706643,0.00012994,2]
[361166665,1747318232165,-150.0,0.00012994,2]
[361166666,1747318232174,-400.0,0.00012995,2]
[361166667,1747318232183,-400.0,0.00012995,2]
[361166668,1747318232192,-400.0,0.00012995,2]
[361166669,1747318232201,-402.45689168,0.00012995,2]
[361166670,1747318232210,-400.0,0.00012995,2]
[361166671,1747318232219,-400.0,0.00012995,2]
[361166672,1747318232228,-400.0,0.00012995,2]
[361166673,1747318232238,-400.0,0.00012995,2]
[361166674,1747318232247,-400.0,0.00012995,2]
[361166675,1747318232256,-400.0,0.00012995,2]
[361166676,1747318232265,-400.0,0.00012995,2]
[361166677,1747318232275,-400.0,0.00012995,2]
[361166678,1747318232284,-400.0,0.00012995,2]
[361166679,1747318232294,-400.0,0.00012995,2]
[361166680,1747318232303,-400.0,0.00012995,2]
[361166681,1747318232313,-400.0,0.00012995,2]
[361166682,1747318232323,-353.63552362,0.00012995,2]
[361166683,1747318232332,-400.0,0.00012995,2]
[361166684,1747318232341,-400.0,0.00012995,2]
[361166685,1747318232351,-400.0,0.00012995,2]
[361166686,1747318232361,-400.0,0.00012995,2]
[361166687,1747318232370,-400.0,0.00012995,2]
[361166688,1747318232380,-907.62,0.00012995,2]
[361166689,1747318232389,-400.0,0.00012995,2]
[361166690,1747318232399,-400.0,0.00012995,2]
[361166691,1747318232411,-400.0,0.00012995,2]
[361166692,1747318232421,-431.4,0.00012995,2]
[361166693,1747318232432,-847.46,0.00012995,2]
[361166695,1747318232441,-400.0,0.00012995,2]
[361166697,1747318232451,-400.0,0.00012995,2]
[361166699,1747318232460,-400.0,0.00012995,2]
[361166701,1747318232470,-400.0,0.00012995,2]
[361166703,1747318232479,-400.0,0.00012995,2]
[361166705,1747318232489,-400.0,0.00012995,2]
[361166707,1747318232500,-632.91,0.00012995,2]
[361166709,1747318232509,-400.0,0.00012995,2]
[361166711,1747318232519,-400.0,0.00012995,2]
[361166712,1747318232529,-400.0,0.00012995,2]
[361166714,1747318232538,-400.0,0.00012995,2]
[361166716,1747318232547,-452.22,0.00012995,2]
[361166718,1747318232557,-1040.45,0.00012995,2]
[361166720,1747318232566,-400.0,0.00012995,2]
[361166722,1747318232576,-478.65,0.00012995,2]
[361166724,1747318232586,-166.151034,0.00012995,2]
[361166726,1747318232595,-400.0,0.00012995,2]
[361166728,1747318232604,-400.0,0.00012995,2]
[361166730,1747318232613,-5023.129019,0.00012995,2]
[361166732,1747318232621,-545.276774,0.00012995,2]
[361166734,1747318232631,-400.0,0.00012995,2]
[361166736,1747318232641,-145.68035065,0.00012995,2]
[361166738,1747318232654,-286.29964935,0.00012995,2]
[361166740,1747318232664,-400.0,0.00012995,2]
[361166742,1747318232673,-249.7256702,0.00012995,2]
[361166745,1747318232698,-280.0401518,0.00012995,2]
[361166747,1747318232707,-400.0,0.00012995,2]
[361166749,1747318232716,-130.46394132,0.00012995,2]
[361166751,1747318232728,-269.53605868,0.00012995,2]
[361166753,1747318232737,-400.0,0.00012995,2]
[361166755,1747318232747,-400.0,0.00012998,2]
[361166757,1747318232756,-400.0,0.00012998,2]
[361166759,1747318232765,-400.0,0.00012998,2]
[361166761,1747318232775,-400.0,0.00012998,2]
[361166763,1747318232784,-400.0,0.00012998,2]
[361166765,1747318232793,-400.0,0.00012998,2]
[361166767,1747318232803,-400.0,0.00012998,2]
[361166769,1747318232812,-400.0,0.00012998,2]
[361166771,1747318232822,-400.0,0.00012998,2]
[361166773,1747318232830,-400.0,0.00012998,2]
[361166775,1747318232839,-400.0,0.00012998,2]
[361166776,1747318232848,-400.0,0.00012998,2]
[361166777,1747318232857,-400.0,0.00012998,2]
[361166778,1747318232866,-400.0,0.00012998,2]
[361166779,1747318232875,-400.0,0.00012998,2]
[361166780,1747318232884,-400.0,0.00012998,2]
[361166781,1747318232893,-400.0,0.00012998,2]
[361166782,1747318232905,-400.0,0.00012998,2]
[361166783,1747318232915,-400.0,0.00012998,2]
[361166784,1747318232924,-400.0,0.00012998,2]
[361166785,1747318232934,-696.2,0.00012998,2]
[361166786,1747318232952,-400.0,0.00012998,2]
[361166787,1747318232964,-400.0,0.00012998,2]
[361166788,1747318232973,-400.0,0.00012998,2]
[361166789,1747318232983,-400.0,0.00012998,2]
[361166790,1747318232993,-40881.02373652,0.00012998,2]
[361166791,1747318233007,-267.59430731,0.00012998,2]
[361166792,1747318233059,-722.76202005,0.00012998,2]
[361166793,1747318233071,-1750.12993612,0.00012998,2]
[361166794,1747318233082,-400.0,0.00012998,2]
[361166795,1747318233092,-400.0,0.00012998,2]
[361166796,1747318233103,-400.0,0.00012998,2]
[361166797,1747318233113,-1402.88,0.00012998,2]
[361166798,1747318233124,-976.56,0.00012998,2]
[361166799,1747318233137,-400.0,0.00012998,2]
[361166800,1747318233147,-400.0,0.00012998,2]
[361166801,1747318233160,-535.1,0.00012998,2]
[361166802,1747318233171,-232.47184895,0.00012998,2]
[361166803,1747318233181,-400.0,0.00012998,2]
[361166804,1747318233192,-186.1,0.00012998,2]
[361166805,1747318233202,-400.0,0.00012998,2]
[361166806,1747318233213,-400.0,0.00012998,2]
[361166807,1747318233224,-400.0,0.00012998,2]
[361166808,1747318233235,-400.0,0.00012998,2]
[361166809,1747318233246,-400.0,0.00012998,2]
[361166810,1747318233257,-167.70727145,0.00012998,2]
[361166811,1747318233295,-232.29272855,0.00012998,2]
[361166812,1747318233305,-101.74924771,0.00012998,2]
[361166813,1747318233318,-298.25075229,0.00012998,2]
[361166814,1747318233328,-386.46833037,0.00012998,2]
[361166815,1747318233342,-13.53166963,0.00012998,2]
[361166816,1747318233352,-400.0,0.00012998,2]
[361166817,1747318233362,-85.89967892,0.00012998,2]
[361166818,1747318233376,-314.10032108,0.00012998,2]
[361166819,1747318233386,-166.87,0.00012998,2]
[361166820,1747318233396,-400.0,0.00012998,2]
[361166821,1747318233409,-400.0,0.00012998,2]
[361166822,1747318233419,-749.24,0.00012998,2]
[361166823,1747318233429,-369.95000053,0.00012998,2]
[361166826,1747318237977,-30.04999947,0.00012998,2]
[361166827,1747318237987,-230.53000053,0.00012998,2]
[361166828,1747318238002,-1270.50999947,0.00012998,2]
[361166829,1747318238012,-284.89956839,0.00012998,2]
[361166830,1747318238023,-115.10043161,0.00012998,2]
[361166831,1747318238032,-400.0,0.00012998,2]
[361166832,1747318238041,-834.09,0.00012998,2]
[361166833,1747318238050,-400.0,0.00012998,2]
[361166834,1747318238059,-400.0,0.00012998,2]
[361166835,1747318238069,-354.85,0.00012998,2]
[361166836,1747318238078,-400.0,0.00012998,2]
[361166837,1747318238087,-400.0,0.00012998,2]
[361166838,1747318238096,-400.0,0.00012998,2]
[361166839,1747318238105,-497.00858396,0.00012999,2]
[361166840,1747318238114,-187.06647206,0.00012999,2]
[361166841,1747318238123,-400.0,0.00012999,2]
[361166842,1747318238136,-23.81819894,0.00012999,2]
[361166843,1747318238147,-361.26540913,0.00012999,2]
[361166844,1747318238165,-60.48580722,0.00012999,2]
[361166845,1747318238175,-291.11419278,0.00012999,2]
[361166846,1747318238230,-108.88580722,0.00012999,2]
[361166847,1747318238240,-400.0,0.00012999,2]
[361166848,1747318238250,-54.42746186,0.00012999,2]
[361166849,1747318238261,-428.61941707,0.00012999,2]
[361166850,1747318238273,-62.83312107,0.00012999,2]
[361166851,1747318238282,-348.22687893,0.00012999,2]
[361166852,1747318238294,-124.49312107,0.00012999,2]
[361166853,1747318238303,-400.0,0.00012999,2]
[361166854,1747318238312,-279.19820635,0.00012999,2]
[361166977,1747318240181,-1072.1,0.00012998,2]
[361166978,1747318240191,-120.80179365,0.00012999,2]
[361166979,1747318240201,-400.0,0.00012999,2]
[361166980,1747318240210,-317.31723098,0.00012999,2]
[361166981,1747318240220,-400.0,0.00012999,2]
[361166982,1747318240230,-400.0,0.00012999,2]
[361166983,1747318240239,-400.0,0.00012999,2]
[361166984,1747318240249,-400.0,0.00012999,2]
[361166985,1747318240258,-400.0,0.00012999,2]
[361166986,1747318240268,-400.0,0.00012999,2]
[361166987,1747318240278,-417.68644674,0.00012999,2]
[361166988,1747318240288,-400.0,0.00012999,2]
[361166989,1747318240298,-221.42993967,0.00012999,2]
[361166990,1747318240307,-400.0,0.00012999,2]
[361166991,1747318240317,-389.40166671,0.00012999,2]
[361166992,1747318240328,-400.0,0.00012999,2]
[361166993,1747318240337,-525.06,0.00012999,2]
[361166994,1747318240346,-400.0,0.00012999,2]
[361166995,1747318240356,-400.0,0.00012999,2]
[361166996,1747318240370,-455.0831327,0.00012999,2]
[361166997,1747318240380,-400.0,0.00012999,2]
[361166998,1747318240389,-400.0,0.00012999,2]
[361166999,1747318240399,-400.0,0.00012999,2]
[361167000,1747318240410,-400.0,0.00012999,2]
[361167001,1747318240419,-400.0,0.00012999,2]
[361167002,1747318240429,-215.38126112,0.00012999,2]
[361167003,1747318240438,-403.87382291,0.00012999,2]
[361167004,1747318240448,-400.0,0.00012999,2]
[361167005,1747318240457,-400.0,0.00012999,2]
[361167006,1747318240467,-400.0,0.00012999,2]
[361167007,1747318240477,-326.44761291,0.00012999,2]
[361167008,1747318240487,-400.0,0.00012999,2]
[361167009,1747318240497,-400.0,0.00012999,2]
[361167010,1747318240506,-400.0,0.00012999,2]
[361167011,1747318240515,-453.30757634,0.00012999,2]
[361167012,1747318240525,-400.0,0.00012999,2]
[361167013,1747318240535,-290.89921453,0.00012999,2]
[361167014,1747318240546,-400.0,0.00012999,2]
[361167015,1747318240556,-400.0,0.00012999,2]
[361167016,1747318240566,-400.0,0.00012999,2]
[361167017,1747318240575,-400.0,0.00012999,2]
[361167018,1747318240585,-400.0,0.00012999,2]
[361167019,1747318240595,-414.57029416,0.00012999,2]
[361167020,1747318240605,-494.81,0.00012999,2]
[361167021,1747318240615,-400.0,0.00012999,2]
[361167022,1747318240624,-400.0,0.00012999,2]
[361167023,1747318240635,-400.0,0.00012999,2]
[361167024,1747318240644,-498.63411174,0.00012999,2]
[361167025,1747318240654,-400.0,0.00012999,2]
[361167026,1747318240670,-400.0,0.00012999,2]
[361167027,1747318240679,-464.62912473,0.00012999,2]
[361167028,1747318240689,-400.0,0.00012999,2]
[361167030,1747318240698,-400.0,0.00012999,2]
[361167032,1747318240707,-400.0,0.00012999,2]
[361167034,1747318240716,-400.0,0.00012999,2]
[361167036,1747318240726,-400.0,0.00012999,2]
[361167038,1747318240736,-400.0,0.00012999,2]
[361167040,1747318240745,-842.14,0.00012999,2]
[361167042,1747318240754,-400.0,0.00012999,2]
[361167044,1747318240764,-400.0,0.00012999,2]
[361167046,1747318240773,-419.11,0.00012999,2]
[361167048,1747318240783,-400.0,0.00012999,2]
[361167050,1747318240792,-400.0,0.00012999,2]
[361167051,1747318240802,-400.0,0.00012999,2]
[361167053,1747318240811,-400.0,0.00012999,2]
[361167055,1747318240821,-400.0,0.00012999,2]
[361167056,1747318240831,-400.0,0.00012999,2]
[361167057,1747318240840,-213.01683892,0.00012999,2]
[361167058,1747318240850,-400.0,0.00012999,2]
[361167059,1747318240859,-400.0,0.00012999,2]
[361167060,1747318240868,-440.9,0.00012999,2]
[361167061,1747318240877,-400.0,0.00012999,2]
[361167062,1747318240887,-501.16,0.00012999,2]
[361167063,1747318240896,-250.0,0.00012999,2]
[361167064,1747318240906,-451.75,0.00012999,2]
[361167065,1747318240919,-400.0,0.00012999,2]
[361167066,1747318240928,-400.0,0.00012999,2]
[361167068,1747318240939,-400.0,0.00012999,2]
[361167070,1747318240948,-400.0,0.00012999,2]
[361167072,1747318240958,-400.0,0.00012999,2]
[361167074,1747318240968,-400.0,0.00012999,2]
[361167076,1747318240978,-400.0,0.00012999,2]
[361167078,1747318240987,-400.0,0.00012999,2]
[361167080,1747318240998,-400.0,0.00012999,2]
[361167082,1747318241007,-400.0,0.00012999,2]
[361167084,1747318241017,-400.0,0.00012999,2]
[361167086,1747318241027,-400.0,0.00012999,2]
[361167088,1747318241036,-400.0,0.00012999,2]
[361167090,1747318241047,-400.0,0.00012999,2]
[361167092,1747318241058,-400.0,0.00012999,2]
[361167094,1747318241068,-400.0,0.00012999,2]
[361167096,1747318241077,-400.0,0.00012999,2]
[361167098,1747318241086,-400.0,0.00012999,2]
[361167100,1747318241095,-426.96,0.00012999,2]
[361167102,1747318241105,-400.0,0.00012999,2]
[361167104,1747318241114,-400.0,0.00012999,2]
[361167106,1747318241127,-400.0,0.00012999,2]
[361167108,1747318241137,-479.16,0.00012999,2]
[361167110,1747318241148,-433.38,0.00012999,2]
[361167112,1747318241158,-481.58740898,0.00012999,2]
[361167114,1747318241169,-400.0,0.00012999,2]
[361167116,1747318241179,-400.0,0.00012999,2]
[361167118,1747318241189,-400.0,0.00012999,2]
[361167120,1747318241199,-400.0,0.00012999,2]
[361167122,1747318241209,-400.0,0.00012999,2]
[361167124,1747318241219,-400.0,0.00012999,2]
[361167126,1747318241229,-400.0,0.00012999,2]
[361167128,1747318241238,-400.0,0.00012999,2]
[361167130,1747318241247,-294.21663045,0.00012999,2]
[361167132,1747318241257,-400.0,0.00012999,2]
[361167134,1747318241266,-463.08,0.00012999,2]
[361167136,1747318241275,-400.0,0.00012999,2]
[361167138,1747318241284,-205.02224682,0.00012999,2]
[361167140,1747318241294,-330.97868094,0.00012999,2]
[361167141,1747318241303,-400.0,0.00012999,2]
[361167144,1747318241314,-400.0,0.00012999,2]
[361167146,1747318241324,-400.0,0.00012999,2]
[361167147,1747318241334,-400.0,0.00012999,2]
[361167149,1747318241343,-400.0,0.00012999,2]
[361167152,1747318241353,-400.0,0.00012999,2]
[361167153,1747318241363,-400.0,0.00012999,2]
[361167155,1747318241373,-400.0,0.00012999,2]
[361167157,1747318241383,-400.0,0.00012999,2]
[361167158,1747318241393,-400.0,0.00012999,2]
[361167159,1747318241403,-400.0,0.00012999,2]
[361167160,1747318241414,-400.0,0.00012999,2]
[361167161,1747318241424,-486.20697488,0.00012999,2]
[361167162,1747318241434,-400.0,0.00012999,2]
[361167163,1747318241444,-400.0,0.00012999,2]
[361167164,1747318241453,-400.0,0.00012999,2]
[361167165,1747318241463,-400.0,0.00012999,2]
[361167166,1747318241474,-400.0,0.00012999,2]
[361167167,1747318241484,-400.0,0.00012999,2]
[361167168,1747318241493,-464.33976033,0.00012999,2]
[361167169,1747318241503,-400.0,0.00012999,2]
[361167170,1747318241512,-400.0,0.00012999,2]
[361167171,1747318241522,-400.0,0.00012999,2]
[361167172,1747318241531,-400.0,0.00012999,2]
[361167173,1747318241541,-400.0,0.00012999,2]
[361167174,1747318241550,-400.0,0.00012999,2]
[361167175,1747318241559,-400.0,0.00012999,2]
[361167176,1747318241569,-400.0,0.00012999,2]
[361167177,1747318241578,-400.0,0.00012999,2]
[361167178,1747318241587,-400.0,0.00012999,2]
[361167179,1747318241596,-419.74094466,0.00012999,2]
[361167180,1747318241605,-400.0,0.00012999,2]
[361167181,1747318241614,-400.0,0.00012999,2]
[361167182,1747318241623,-475.74,0.00012999,2]
[361167183,1747318241632,-400.0,0.00012999,2]
[361167184,1747318241642,-400.0,0.00012999,2]
[361167185,1747318241651,-400.0,0.00012999,2]
[361167186,1747318241664,-400.0,0.00012999,2]
[361167187,1747318241673,-455.88,0.00012999,2]
[361167188,1747318241683,-400.0,0.00012999,2]
[361167189,1747318241692,-400.0,0.00012999,2]
[361167190,1747318241701,-28.21271324,0.00012999,2]
[361167191,1747318241928,-371.78728676,0.00012999,2]
[361167192,1747318241938,-500.0,0.00012999,2]
[361167193,1747318241948,-400.0,0.00012999,2]
[361167194,1747318241957,-400.0,0.00012999,2]
[361167195,1747318241967,-400.0,0.00012999,2]
[361167196,1747318241977,-400.0,0.00012999,2]
[361167197,1747318241987,-400.0,0.00012999,2]
[361167198,1747318241996,-446.24,0.00012999,2]
[361167199,1747318242006,-400.0,0.00012999,2]
[361167200,1747318242015,-400.0,0.00012999,2]
[361167201,1747318242025,-400.0,0.00012999,2]
[361167202,1747318242037,-400.0,0.00012999,2]
[361167203,1747318242047,-400.0,0.00012999,2]
[361167204,1747318242056,-400.0,0.00012999,2]
[361167205,1747318242066,-400.0,0.00012999,2]
[361167206,1747318242076,-400.0,0.00012999,2]
[361167207,1747318242086,-400.0,0.00012999,2]
[361167208,1747318242095,-400.0,0.00012999,2]
[361167209,1747318242105,-400.0,0.00012999,2]
[361167210,1747318242115,-400.0,0.00012999,2]
[361167211,1747318242125,-400.0,0.00012999,2]
[361167212,1747318242139,-400.0,0.00012999,2]
[361167213,1747318242149,-400.0,0.00012999,2]
[361167214,1747318242158,-400.0,0.00012999,2]
[361167215,1747318242173,-386.05673598,0.00012999,2]
[361167216,1747318242182,-400.0,0.00012999,2]
[361167217,1747318242192,-400.0,0.00012999,2]
[361167218,1747318242201,-400.0,0.00012999,2]
[361167219,1747318242212,-516.33181801,0.00012999,2]
[361167220,1747318242223,-400.0,0.00012999,2]
[361167221,1747318242233,-400.0,0.00012999,2]
[361167222,1747318242242,-545.3755686,0.00012999,2]
[361167223,1747318242251,-400.0,0.00012999,2]
[361167224,1747318242261,-400.0,0.00012999,2]
[361167225,1747318242272,-400.0,0.00012999,2]
[361167226,1747318242281,-189.76,0.00012999,2]
[361167227,1747318242291,-382.41680095,0.00012999,2]
[361167228,1747318242300,-400.0,0.00012999,2]
[361167229,1747318242310,-400.0,0.00012999,2]
[361167230,1747318242320,-400.0,0.00012999,2]
[361167231,1747318242329,-400.0,0.00012999,2]
[361167232,1747318242339,-405.75,0.00012999,2]
[361167233,1747318242349,-400.0,0.00012999,2]
[361167234,1747318242358,-400.0,0.00012999,2]
[361167235,1747318242368,-400.0,0.00012999,2]
[361167236,1747318242379,-400.0,0.00012999,2]
[361167237,1747318242389,-467.62,0.00012999,2]
[361167238,1747318242399,-400.0,0.00012999,2]
[361167239,1747318242408,-400.0,0.00012999,2]
[361167240,1747318242421,-400.0,0.00012999,2]
[361167241,1747318242431,-400.0,0.00012999,2]
[361167242,1747318242440,-400.0,0.00012999,2]
[361167243,1747318242450,-400.0,0.00012999,2]
[361167244,1747318242461,-400.0,0.00012999,2]
[361167245,1747318242471,-400.0,0.00012999,2]
[361167246,1747318242480,-400.0,0.00012999,2]
[361167247,1747318242490,-400.0,0.00012999,2]
[361167248,1747318242499,-400.0,0.00012999,2]
[361167249,1747318242508,-467.95,0.00012999,2]
[361167250,1747318242518,-400.0,0.00012999,2]
[361167251,1747318242528,-400.0,0.00012999,2]
[361167252,1747318242539,-400.0,0.00012999,2]
[361167253,1747318242549,-400.0,0.00012999,2]
[361167254,1747318242559,-400.0,0.00012999,2]
[361167255,1747318242569,-400.0,0.00012999,2]
[361167256,1747318242579,-400.0,0.00012999,2]
[361167257,1747318242589,-400.0,0.00012999,2]
[361167258,1747318242599,-400.0,0.00012999,2]
[361167259,1747318242609,-400.0,0.00012999,2]
[361167260,1747318242619,-554.99,0.00012999,2]
[361167261,1747318242630,-510.72,0.00012999,2]
[361167262,1747318242639,-523.74,0.00012999,2]
[361167263,1747318242649,-400.0,0.00012999,2]
[361167264,1747318242658,-400.0,0.00012999,2]
[361167265,1747318242670,-400.0,0.00012999,2]
[361167266,1747318242679,-400.0,0.00012999,2]
[361167267,1747318242689,-400.0,0.00012999,2]
[361167268,1747318242699,-400.0,0.00012999,2]
[361167269,1747318242708,-400.0,0.00012999,2]
[361167270,1747318242718,-400.0,0.00012999,2]
[361167271,1747318242727,-400.0,0.00012999,2]
[361167272,1747318242737,-630.56,0.00012999,2]
[361167273,1747318242747,-400.0,0.00012999,2]
[361167274,1747318242756,-400.0,0.00012999,2]
[361167275,1747318242765,-400.0,0.00012999,2]
[361167276,1747318242776,-883.17,0.00012999,2]
[361167277,1747318242786,-2884.48,0.00012999,2]
[361167278,1747318242795,-400.0,0.00012999,2]
[361167279,1747318242805,-541.7,0.00012999,2]
[361167280,1747318242815,-400.0,0.00012999,2]
[361167281,1747318242825,-738.0,0.00012999,2]
[361167282,1747318242834,-1882.0,0.00012999,2]
[361167283,1747318242844,-2538.24,0.00012999,2]
[361167284,1747318242853,-422.71,0.00012999,2]
[361167285,1747318242863,-400.0,0.00012999,2]
[361167287,1747318242873,-400.0,0.00012999,2]
[361167289,1747318242883,-235.40814871,0.00012999,2]
[361167290,1747318242892,-400.0,0.00012999,2]
[361167291,1747318242902,-400.0,0.00012999,2]
[361167292,1747318242914,-350.21878933,0.00012999,2]
[361167293,1747318242924,-400.0,0.00012999,2]
[361167294,1747318242934,-400.0,0.00012999,2]
[361167295,1747318242944,-400.0,0.00012999,2]
[361167296,1747318242954,-400.0,0.00012999,2]
[361167297,1747318242963,-400.0,0.00012999,2]
[361167299,1747318242973,-382.82415079,0.00012999,2]
[361167300,1747318242984,-400.0,0.00012999,2]
[361167302,1747318242994,-400.0,0.00012999,2]
[361167303,1747318243003,-400.0,0.00012999,2]
[361167304,1747318243013,-400.0,0.00012999,2]
[361167305,1747318243023,-400.0,0.00012999,2]
[361167306,1747318243032,-400.0,0.00012999,2]
[361167307,1747318243042,-246.653863,0.00012999,2]
[361167308,1747318243051,-476.16237279,0.00012999,2]
[361167309,1747318243061,-400.0,0.00012999,2]
[361167310,1747318243070,-400.0,0.00012999,2]
[361167312,1747318243079,-400.0,0.00012999,2]
[361167313,1747318243089,-400.0,0.00012999,2]
[361167314,1747318243098,-400.0,0.00012999,2]
[361167315,1747318243109,-400.0,0.00012999,2]
[361167316,1747318243118,-400.0,0.00012999,2]
[361167317,1747318243132,-400.0,0.00012999,2]
[361167318,1747318243142,-400.0,0.00012999,2]
[361167319,1747318243151,-400.0,0.00012999,2]
[361167320,1747318243161,-400.0,0.00012999,2]
[361167321,1747318243171,-500.0,0.00012999,2]
[361167322,1747318243181,-400.0,0.00012999,2]
[361167323,1747318243190,-400.0,0.00012999,2]
[361167324,1747318243199,-400.0,0.00012999,2]
[361167325,1747318243209,-400.0,0.00012999,2]
[361167326,1747318243219,-400.0,0.00012999,2]
[361167327,1747318243228,-400.0,0.00012999,2]
[361167328,1747318243238,-400.0,0.00012999,2]
[361167329,1747318243247,-501.06110601,0.00012999,2]
[361167330,1747318243257,-400.0,0.00012999,2]
[361167331,1747318243267,-429.36,0.00012999,2]
[361167332,1747318243277,-400.0,0.00012999,2]
[361167333,1747318243287,-529123.10272492,0.00013,2]
[361167334,1747318243300,-316813.83978512,0.00013,2]
[361167335,1747318243659,-54.48553318,0.00013,2]
[361167336,1747318243676,-5348.33999999,0.00013,2]
[361167337,1747318243695,-262.5,0.00013,2]
[361167338,1747318243713,-3039.59267018,0.00013,2]
[361167339,1747318243725,-1018.0,0.00013,2]
[361167340,1747318243737,-3215.2693061,0.00013,2]
[361167357,1747318243939,-400.0,0.00012998,2]
[361167359,1747318243949,-128.00587479,0.00013,2]
[361167363,1747318243973,-170532.9619653,0.00013,2]
[361167364,1747318243984,-470.43935122,0.00013,2]
[361167365,1747318243996,-635.0,0.00013,2]
[361167366,1747318244011,-171418.76601119,0.00013,2]
[361167367,1747318244020,-431336.30770658,0.00013,2]
[361167368,1747318244031,-933382.92880593,0.00013,2]
[361167369,1747318244063,-252.58751994,0.00013,2]
[361167375,1747318246123,-9259.20645871,0.00013,2]
[361167376,1747318246213,-1018.41643889,0.00013,2]
[361167377,1747318246368,-1118.75940979,0.00013,2]
[361167534,1747318265534,150.0,0.00012547,7]
[361167535,1747318401375,500.0,0.00025782,120]
[361167539,1747318688875,1000.0,0.00027,120]
[361167540,1747318719383,150.0,0.00013,5]
[361167543,1747318816203,-154.86931723,0.0001,2]